lending/lending_fUSD_20260124
["ID","MTS","AMOUNT","RATE_DAILY","PERIOD"]
[403165709,1769228563753,-179.11384868,0.00013916,2]
[403165710,1769228565304,-330.23379723,0.00013916,2]
[403165711,1769228567345,-303.83949465,0.00013916,2]
[403165712,1769228569405,-209.40344106,0.00013916,2]
[403165713,1769228571726,-387.92974064,0.00013916,2]
[403165714,1769228573694,-302.46509455,0.00013916,2]
[403165715,1769228576384,-324.10999087,0.00013916,2]
[403165716,1769228579423,-218.31023305,0.00013916,2]
[403165717,1769228581173,6.06322432,0.00013655,2]
[403165718,1769228581196,393.93677568,0.00013655,2]
[403165719,1769228583862,-390.66590947,0.00013916,2]
[403165720,1769228585474,-195.0,0.00013916,2]
[403165721,1769228587663,-245.95516537,0.00013916,2]
[403165722,1769228590575,-435.03636161,0.00013916,2]
[403165723,1769228593903,-191.79568348,0.00013916,2]
[403165724,1769228596058,-290.92210688,0.00013916,2]
[403165725,1769228603855,-287.98105866,0.00013781,2]
[403165726,1769228606074,-59.46894134,0.00013781,2]
[403165727,1769228606097,-524.03105866,0.00013916,2]
[403165728,1769228607728,-319.213865,0.00013916,2]
[403165729,1769228609328,-254.84613125,0.00013916,2]
[403165730,1769228613318,-296.66199893,0.00013916,2]
[403165731,1769228615609,-412.61568662,0.00013916,2]
[403165732,1769228617325,-196.76014019,0.00013916,2]
[403165733,1769228618894,-294.29083844,0.00013916,2]
[403165734,1769228622993,-254.29924118,0.00013916,2]
[403165735,1769228624672,-225.73370639,0.00013916,2]
[403165736,1769228628609,-151.67763465,0.00013916,2]
[403165737,1769228630120,-209.20770058,0.00013916,2]
[403165738,1769228633002,-196.42290902,0.00013916,2]
[403165739,1769228635321,-304.33692209,0.00013916,2]
[403165740,1769228637750,-187.07118978,0.00013916,2]
[403165741,1769228639912,-616.5,0.00013916,2]
[403165742,1769228641899,-348.75883952,0.000138,2]
[403165743,1769228643446,-395.92321083,0.000138,2]
[403165744,1769228647301,-200.0,0.000138,2]
[403165745,1769228648905,-55.31794965,0.000138,2]
[403165746,1769228648935,-301.08018653,0.00013916,2]
[403165747,1769228653638,-283.09318801,0.00013916,2]
[403165748,1769228659925,-304.80074815,0.00013916,2]
[403165749,1769228662044,-223.91706543,0.00013916,2]
[403165750,1769228665349,-165.17107784,0.00013916,2]
[403165751,1769228668099,-166.16560413,0.00013904,2]
[403165752,1769228670130,-300.0,0.00013904,2]
[403165753,1769228675523,-231.78535653,0.00013903,2]
[403165754,1769228678271,-159.27633665,0.00013903,2]
[403165755,1769228680969,-77.51886891,0.00013903,2]
[403165756,1769228680996,-141.5612428,0.00013903,2]
[403165757,1769228682586,-309.67887236,0.00013903,2]
[403165758,1769228684793,-48.75988484,0.00013903,2]
[403165759,1769228684818,-132.40797678,0.00013903,2]
[403165760,1769228688116,-180.63428719,0.00013903,2]
[403165761,1769228688138,-134.04899,0.00013904,2]
[403165762,1769228689213,-179.75030881,0.00013904,2]
[403165763,1769228690656,-212.15196144,0.00013904,2]
[403165764,1769228693338,-202.58890261,0.00013904,2]
[403165765,1769228695489,-210.64922317,0.00013904,2]
[403165766,1769228697641,-461.04644026,0.00013904,2]
[403165767,1769228700800,-166.02656855,0.00013904,2]
[403165768,1769228702534,-167.29847352,0.00013903,2]
[403165769,1769228709744,-283.58231807,0.00013903,2]
[403165770,1769228711709,-240.29600961,0.00013903,2]
[403165771,1769228713941,-248.42152304,0.00013903,2]
[403165772,1769228717681,-260.40167576,0.00013903,2]
[403165773,1769228717706,-31.42443903,0.00013904,2]
[403165774,1769228719242,-302.0,0.00013904,2]
[403165775,1769228720885,-410.44315369,0.00013904,2]
[403165776,1769228722450,-218.91069413,0.00013904,2]
[403165777,1769228726525,-299.35701369,0.00013904,2]
[403165778,1769228728734,-500.0,0.00013904,2]
[403165779,1769228730900,-211.005736,0.00013904,2]
[403165780,1769228733382,-174.01108551,0.00013904,2]
[403165781,1769228734920,-200.95907073,0.00013904,2]
[403165782,1769228737631,-175.68786292,0.00013904,2]
[403165783,1769228740379,-635.71232497,0.00013904,2]
[403165784,1769228742421,-218.24227358,0.00013904,2]
[403165785,1769228743991,-286.16054555,0.00013904,2]
[403165786,1769228746739,-233.13295432,0.00013904,2]
[403165787,1769228748870,-189.87485552,0.00013904,2]
[403165788,1769228750434,-267.10960323,0.00013904,2]
[403165789,1769228752169,-303.0480494,0.00013904,2]
[403165790,1769228754130,-167.17532628,0.00013904,2]
[403165791,1769228758064,-200.57604426,0.00013904,2]
[403165792,1769228759659,-295.86608011,0.00013904,2]
[403165793,1769228763435,-153.683692,0.00013903,2]
[403165794,1769228766182,-146.316308,0.00013903,2]
[403165795,1769228766206,-65.4913498,0.00013904,2]
[403165796,1769228767610,-341.44833593,0.00013904,2]
[403165797,1769228769195,-155.03186656,0.00013816,2]
[403165798,1769228769221,-133.09294643,0.00013904,2]
[403165799,1769228771432,-187.10365935,0.00013904,2]
[403165800,1769228773547,-152.90282489,0.00013904,2]
[403165801,1769228774737,-200.0,0.00013904,2]
[403165802,1769228777937,-151.0,0.00013901,2]
[403165803,1769228777961,-22.72034882,0.00013901,2]
[403165804,1769228780019,-128.27965118,0.00013901,2]
[403165805,1769228780047,-32.39294091,0.00013901,2]
[403165806,1769228782072,-118.60705909,0.00013901,2]
[403165807,1769228782426,-191.34917825,0.00013904,2]
[403165808,1769228783965,-249.99807935,0.00013904,2]
[403165809,1769228786187,-202.34013256,0.00013904,2]
[403165810,1769228787623,-320.8804207,0.00013904,2]
[403165811,1769228790394,-591.69802199,0.00013904,2]
[403165812,1769228793092,-274.14035493,0.00013904,2]
[403165813,1769228795085,-264.38189314,0.00013903,2]
[403165814,1769228797193,-274.08438925,0.00013903,2]
[403165815,1769228799306,-220.54251313,0.00013903,2]
[403165816,1769228800940,-264.87733376,0.00013903,2]
[403165817,1769228802466,-152.59314192,0.00013903,2]
[403165818,1769228805475,-175.19791443,0.00013903,2]
[403165819,1769228809438,-208.68743832,0.00013903,2]
[403165820,1769228811611,-287.27718627,0.00013903,2]
[403165821,1769228814462,-399.30939117,0.00013903,2]
[403165822,1769228816295,-300.0,0.00013903,2]
[403165823,1769228819062,-227.68463035,0.00013903,2]
[403165824,1769228821829,-289.46022887,0.00013902,2]
[403165825,1769228824594,-10.53977113,0.00013902,2]
[403165826,1769228824617,-187.46022887,0.00013903,2]
[403165827,1769228826298,-300.0,0.00013903,2]
[403165828,1769228830381,1600.0,0.000148,5]
[403165829,1769228830599,-262.65880764,0.00013903,2]
[403165830,1769228832304,-358.97455968,0.00013903,2]
[403165831,1769228832593,3300.0,0.000149,5]
[403165832,1769228834444,-473.10450358,0.00013903,2]
[403165833,1769228837837,-293.69562351,0.00013903,2]
[403165834,1769228842480,-194.78001737,0.00013903,2]
[403165836,1769228845598,-310.54156861,0.00013903,2]
[403165837,1769228849081,-236.39367648,0.00013903,2]
[403165838,1769228854389,-165.00301899,0.00013903,2]
[403165839,1769228855893,-430.10190951,0.00013903,2]
[403165840,1769228857972,-190.28,0.00013903,2]
[403165841,1769228860133,-327.37123182,0.00013903,2]
[403165842,1769228863503,-174.33941195,0.00013903,2]
[403165843,1769228868926,-259.33409053,0.00013903,2]
[403165844,1769228871121,-235.34687346,0.00013903,2]
[403165845,1769228872715,-1129.58360968,0.00013903,2]
[403165846,1769228874978,-374.88823049,0.00013903,2]
[403165847,1769228877215,-219.9643608,0.00013903,2]
[403165848,1769228878928,-155.03186655,0.00013903,2]
[403165849,1769228880874,-155.66064199,0.00013903,2]
[403165850,1769228882341,-216.64293227,0.00013903,2]
[403165851,1769228883996,-344.33935801,0.00013903,2]
[403165852,1769228887775,-290.49994628,0.00013903,2]
[403165853,1769228890931,-353.76731991,0.00013804,2]
[403165854,1769228895776,-174.51467004,0.00013804,2]
[403165855,1769228897910,-247.33835689,0.00013804,2]
[403165856,1769228899947,-280.7290306,0.00013804,2]
[403165857,1769228902232,-311.94369915,0.00013804,2]
[403165858,1769228903915,-222.55181947,0.00013804,2]
[403165859,1769228906054,-321.55787541,0.00013804,2]
[403165860,1769228909400,-171.06677971,0.00013804,2]
[403165861,1769228916534,-248.68660594,0.00013804,2]
[403165862,1769228919175,-58.00748347,0.00013804,2]
[403165863,1769228919198,-150.51892394,0.00013901,2]
[403165864,1769228921935,-0.48107606,0.00013901,2]
[403165865,1769228921957,-151.0,0.00013901,2]
[403165866,1769228921979,-117.90102308,0.00013901,2]
[403165867,1769228925505,-33.09897692,0.00013901,2]
[403165868,1769228925527,-186.17199248,0.00013902,2]
[403165869,1769228928038,-117.9294354,0.00013902,2]
[403165870,1769228928060,-192.212083,0.00013903,2]
[403165871,1769228930261,-190.58851501,0.00013902,2]
[403165872,1769228932404,-85.02006779,0.00013902,2]
[403165873,1769228932429,-97.369004,0.00013903,2]
[403165874,1769228934791,-200.63335751,0.00013902,2]
[403165875,1769228937579,-150.0,0.00013675,2]
[403165876,1769228937925,-19.77868304,0.00013902,2]
[403165877,1769228937948,-137.87284047,0.00013902,2]
[403165878,1769228939875,-81.39812893,0.00013902,2]
[403165879,1769228939900,-133.79696686,0.00013903,2]
[403165880,1769228943694,-300.0,0.00013902,2]
[403165881,1769228943717,-103.16065364,0.00013903,2]
[403165882,1769228947629,-164.736033,0.00013903,2]
[403165883,1769228952663,-252.42994815,0.00013903,2]
[403165884,1769228955348,-333.2158016,0.00013903,2]
[403165885,1769228958743,-365.95735116,0.00013903,2]
[403165886,1769228960283,-302.19129105,0.00013903,2]
[403165887,1769228963753,-496.47191495,0.00013903,2]
[403165888,1769228965450,-154.69979071,0.00013903,2]
[403165889,1769228967033,-245.70075882,0.00013903,2]
[403165890,1769228969684,-535.2409499,0.00013903,2]
[403165891,1769228972144,-5326.784806,0.00013903,2]
[403165892,1769228974869,-224.99327147,0.00013903,2]
[403165893,1769228976452,-158.50428498,0.00013903,2]
[403165894,1769228981479,-327.71327637,0.00013903,2]
[403165895,1769228983678,-213.03537558,0.00013903,2]
[403165896,1769228985881,-353.65680553,0.00013903,2]
[403165897,1769228988010,-295.87171144,0.00013903,2]
[403165898,1769228991195,-487.06693158,0.00013903,2]
[403165899,1769228994099,-377.23293747,0.00013903,2]
[403165900,1769228996939,-300.0,0.00013903,2]
[403165901,1769228999968,-288.33457655,0.00013903,2]
[403165902,1769229003182,-188.70319818,0.00013902,2]
[403165903,1769229005251,-111.29680182,0.00013902,2]
[403165904,1769229005275,-106.0970775,0.00013902,2]
[403165905,1769229010246,-151.43953332,0.00013902,2]
[403165906,1769229011976,-42.46338918,0.00013902,2]
[403165907,1769229011999,-157.51314436,0.00013902,2]
[403165908,1769229015180,-253.8859156,0.00013902,2]
[403165909,1769229018872,-151.0,0.00013901,2]
[403165910,1769229018894,-31.4341895,0.00013901,2]
[403165911,1769229021617,-119.5658105,0.00013901,2]
[403165912,1769229021641,-65.2814895,0.00013901,2]
[403165913,1769229023252,-85.7185105,0.00013901,2]
[403165914,1769229023285,-540.25332205,0.00013902,2]
[403165915,1769229025637,-248.34761799,0.00013902,2]
[403165916,1769229025660,-32.65238201,0.00013902,2]
[403165917,1769229027914,-193.81273522,0.00013902,2]
[403165918,1769229029620,-73.53488277,0.00013902,2]
[403165919,1769229029644,-328.42331248,0.00013903,2]
[403165930,1769229032139,-4207.88003991,0.00013903,2]
[403165931,1769229032299,-299.99,0.00013903,2]
[403165932,1769229032357,-303.999998,0.00013903,2]
[403165933,1769229032368,-546.59355289,0.00013903,2]
[403165934,1769229032377,-229.56348522,0.00013903,2]
[403165963,1769229032714,-272.39166125,0.00013903,2]
[403165994,1769229035418,-219.58282256,0.00013903,2]
[403165997,1769229038507,-620.96148733,0.00013903,2]
[403166003,1769229038555,-335.96000004,0.00013903,2]
[403166005,1769229038567,-769.31118832,0.00013903,2]
[403166007,1769229038591,-1679.01216788,0.00013903,2]
[403166008,1769229038600,-219.87128626,0.00013903,2]
[403166009,1769229038610,-150.0,0.00013903,2]
[403166010,1769229038619,-70686.04569356,0.00013904,2]
[403166011,1769229038630,-1315.20057105,0.00013904,2]
[403166012,1769229038640,-963.02821688,0.00013904,2]
[403166013,1769229040298,-2054.98497725,0.00013904,2]
[403166014,1769229040310,-2602.99277642,0.00013904,2]
[403166040,1769229043744,-80955.72510012,0.00013904,2]
[403166041,1769229044377,-180.9305664,0.00013904,2]
[403166043,1769229060952,-625.77452675,0.00013904,2]
[403166044,1769229062467,-300.0,0.00013903,2]
[403166045,1769229062492,-23.56691211,0.00013904,2]
[403166046,1769229063827,-170.30130963,0.00013903,2]
[403166047,1769229065643,-7.19928312,0.00013903,2]
[403166048,1769229065665,-183.95516542,0.00013903,2]
[403166049,1769229067070,-11.4585407,0.00013903,2]
[403166050,1769229067095,-254.30682026,0.00013904,2]
[403166051,1769229069335,-191.15444854,0.00013904,2]
[403166052,1769229069359,-451.92574196,0.00013904,2]
[403166053,1769229074180,-438.61923921,0.00013904,2]
[403166054,1769229077619,-244.80789902,0.00013904,2]
[403166055,1769229079144,-300.0,0.00013904,2]
[403166056,1769229085592,-193.27711953,0.00013904,2]
[403166057,1769229088276,-162.96462613,0.00013904,2]
[403166058,1769229088641,162.035725,0.00014897,3]
[403166059,1769229089753,-177.21446126,0.00013904,2]
[403166060,1769229093269,-167.47450196,0.00013904,2]
[403166061,1769229094709,-233.32957957,0.00013904,2]
[403166062,1769229097830,-226.62935403,0.00013904,2]
[403166063,1769229119585,-221.84434696,0.00013904,2]
[403166064,1769229122415,-274.0,0.00013904,2]
[403166065,1769229125715,-258.69331905,0.00013904,2]
[403166066,1769229127186,-255.19206791,0.00013904,2]
[403166067,1769229129408,-155.26686864,0.00013904,2]
[403166068,1769229130953,-738.30969581,0.00013904,2]
[403166069,1769229133520,-288.38501587,0.00013904,2]
[403166070,1769229135085,-314.91192107,0.00013904,2]
[403166071,1769229137312,256.72,0.0001365,2]
[403166072,1769229138290,-152.55509174,0.00013904,2]
[403166073,1769229141627,-187.49372235,0.00013904,2]
[403166074,1769229143120,-732.12055295,0.00013904,2]
[403166075,1769229144990,-367.40314113,0.00013904,2]
[403166076,1769229147102,-182.59685887,0.00013904,2]
[403166077,1769229149867,-240.68893856,0.00013904,2]
[403166078,1769229152671,-407.689429,0.00013904,2]
[403166079,1769229155974,-166.66,0.00013904,2]
[403166080,1769229157607,-244.04452484,0.00013904,2]
[403166081,1769229159038,-184.0,0.00013904,2]
[403166082,1769229162911,-165.57403326,0.00013904,2]
[403166083,1769229165598,-423.79,0.00013904,2]
[403166084,1769229167228,-235.68056376,0.00013904,2]
[403166085,1769229169159,-200.0,0.00013904,2]
[403166086,1769229171212,-273.0,0.00013904,2]
[403166087,1769229175203,-218.34596674,0.00013904,2]
[403166088,1769229178484,-292.74515794,0.00013904,2]
[403166089,1769229182571,-228.01290191,0.00013904,2]
[403166090,1769229184736,-183.0,0.00013765,2]
[403166091,1769229184760,-65.51709809,0.00013904,2]
[403166092,1769229190352,-454.1716,0.00013904,2]
[403166093,1769229192128,-359.86452808,0.00013904,2]
[403166094,1769229197018,-162.06320131,0.00013904,2]
[403166095,1769229199002,-354.909562,0.00013904,2]
[403166096,1769229200509,-164.9802563,0.00013904,2]
[403166097,1769229202639,-503.68805259,0.00013904,2]
[403166098,1769229515593,6414.52,0.00011233,2]
[403166099,1769229556827,165.34958219,0.00013633,2]
[403166100,1769229557559,157.52757013,0.00013633,2]
[403166101,1769229557598,150.0,0.00013633,2]
[403166102,1769229557721,150.0,0.00013633,2]
[403166103,1769229595608,206.58,0.00013015,2]
[403166104,1769229616323,1023.577871,0.00013619,2]
[403166105,1769229698116,180.10092261,0.00013642,2]
[403166106,1769229793311,171.84070592,0.00014897,3]
[403166107,1769229793866,202.03058125,0.00014897,3]
[403166108,1769229794733,150.07696773,0.00014897,3]
[403166109,1769229801337,150.0,0.00013626,2]
[403166110,1769229801515,155.71047214,0.00013681,2]
[403166111,1769229802545,150.0,0.00013626,2]
[403166112,1769229802871,150.0,0.00013681,2]
[403166113,1769229808259,-263.0,0.00013688,2]
[403166114,1769229842263,200.0,0.00012973,2]
[403166115,1769229859355,150.0,0.00013625,2]
[403166116,1769229859665,152.48032116,0.0001368,2]
[403166117,1769229882348,3240.0,0.00013425,2]
[403166118,1769229908400,5533.0,0.000155,3]
[403166119,1769229909640,166.66,0.00012322,2]
[403166120,1769229909845,166.66,0.00012582,2]
[403166121,1769229910066,166.66,0.00012841,2]
[403166122,1769229910284,166.66,0.00013101,2]
[403166123,1769229910544,166.66,0.0001336,2]
[403166124,1769229910736,166.66,0.00013619,2]
[403166125,1769229939727,5533.0,0.000155,3]
[403166126,1769229971566,5533.0,0.000154,3]
[403166127,1769230002903,307.0,0.000154,3]
[403166128,1769230025685,180.10092261,0.00013619,2]
[403166129,1769230030877,1400.0,0.000139,5]
[403166130,1769230034000,5533.0,0.000155,5]
[403166131,1769230047426,209.12888281,0.0001362,2]
[403166132,1769230047927,500.0,0.0001362,2]
[403166133,1769230048076,500.0,0.00013675,2]
[403166134,1769230049896,150.0,0.0001362,2]
[403166135,1769230050027,215.96483373,0.00013675,2]
[403166138,1769230231321,-193.27711953,0.00013719,2]
[403166139,1769230231331,-408.84555146,0.00013719,2]
[403166140,1769230231340,-195.0,0.00013719,2]
[403166141,1769230231349,-500.0,0.0001373,2]
[403166142,1769230231358,-315.27173612,0.00013766,2]
[403166143,1769230231370,-612.78854042,0.00013766,2]
[403166144,1769230231382,-881.58615292,0.00013766,2]
[403166145,1769230231392,-552.70075638,0.00013784,2]
[403166146,1769230231400,-191.0,0.000138,2]
[403166147,1769230231410,-291.64830587,0.000138,2]
[403166148,1769230231430,-908.35169413,0.000138,2]
[403166149,1769230231439,-186.79722725,0.000138,2]
[403166150,1769230231450,-113.20277275,0.000138,2]
[403166151,1769230231459,-757.93883901,0.00013802,2]
[403166152,1769230231470,-1452.79122051,0.00013802,2]
[403166153,1769230231480,-180.10092261,0.00013802,2]
[403166154,1769230231490,-6666.67628715,0.00013802,2]
[403166155,1769230231499,-242.05151373,0.00013816,2]
[403166156,1769230231508,-508.90679538,0.00013887,2]
[403166157,1769230231517,-500.0,0.00013887,2]
[403166158,1769230231527,-500.0,0.00013887,2]
[403166159,1769230231536,-500.0,0.00013887,2]
[403166160,1769230231545,-355.82986818,0.00013887,2]
[403166161,1769230231554,-500.0,0.00013887,2]
[403166162,1769230231563,-500.0,0.00013887,2]
[403166163,1769230231574,-500.0,0.00013887,2]
[403166164,1769230231584,-500.0,0.00013887,2]
[403166165,1769230231595,-174.43328181,0.00013887,2]
[403166167,1769230231604,-500.0,0.00013887,2]
[403166169,1769230231613,-366.92002061,0.00013887,2]
[403166170,1769230231623,-253.76461174,0.00013887,2]
[403166171,1769230231633,-500.0,0.00013887,2]
[403166172,1769230231643,-500.0,0.00013887,2]
[403166173,1769230231653,-500.0,0.00013887,2]
[403166175,1769230231662,-500.0,0.00013887,2]
[403166177,1769230231671,-500.0,0.00013887,2]
[403166179,1769230231681,-500.0,0.00013887,2]
[403166181,1769230231690,-500.0,0.00013887,2]
[403166183,1769230231699,-500.0,0.00013887,2]
[403166185,1769230231708,-500.0,0.00013887,2]
[403166187,1769230231717,-500.0,0.00013887,2]
[403166189,1769230231726,-500.0,0.00013887,2]
[403166191,1769230231736,-500.0,0.00013887,2]
[403166193,1769230231745,-500.0,0.00013887,2]
[403166195,1769230231754,-500.0,0.00013887,2]
[403166197,1769230231763,-500.0,0.00013887,2]
[403166199,1769230231772,-500.0,0.00013887,2]
[403166201,1769230231781,-500.0,0.00013887,2]
[403166203,1769230231790,-500.0,0.00013887,2]
[403166205,1769230231799,-231.46665871,0.00013887,2]
[403166207,1769230231810,-268.53334129,0.00013887,2]
[403166209,1769230231820,-500.0,0.00013887,2]
[403166211,1769230231829,-391.41022942,0.00013887,2]
[403166214,1769230231845,-108.58977058,0.00013887,2]
[403166216,1769230231854,-500.0,0.00013887,2]
[403166218,1769230231863,-500.0,0.00013887,2]
[403166220,1769230231872,-229.6906503,0.00013887,2]
[403166222,1769230231881,-500.0,0.00013887,2]
[403166224,1769230231890,-500.0,0.00013887,2]
[403166226,1769230231899,-150.0,0.00013887,2]
[403166228,1769230231908,-440.75,0.00013887,2]
[403166230,1769230231917,-108.04682317,0.00013888,2]
[403166233,1769230231934,-46.95317683,0.00013888,2]
[403166235,1769230231943,-430.53891269,0.00013889,2]
[403166339,1769230237422,-1172.96774003,0.00013889,2]
[403166340,1769230237433,-873.39,0.00013889,2]
[403166341,1769230237478,-588.40634728,0.00013889,2]
[403166342,1769230237487,-166.967,0.00013889,2]
[403166343,1769230237496,-151.0,0.00013891,2]
[403166344,1769230237506,-219.1276311,0.00013894,2]
[403166345,1769230237516,-250.43395906,0.00013894,2]
[403166346,1769230237526,-151.0,0.00013894,2]
[403166347,1769230237535,-151.0,0.00013894,2]
[403166348,1769230237544,-151.0,0.00013894,2]
[403166349,1769230237553,-12.66506256,0.00013894,2]
[403166350,1769230237564,-138.33493744,0.00013894,2]
[403166351,1769230237573,-151.0,0.00013894,2]
[403166352,1769230237582,-151.0,0.00013894,2]
[403166353,1769230237592,-479.04506256,0.00013894,2]
[403166354,1769230237603,-20.95493744,0.00013894,2]
[403166355,1769230237612,-151.0,0.00013894,2]
[403166356,1769230237622,-500.0,0.00013894,2]
[403166357,1769230237631,-151.0,0.00013894,2]
[403166358,1769230237640,-500.0,0.00013894,2]
[403166359,1769230237649,-151.0,0.00013894,2]
[403166360,1769230237659,-500.0,0.00013894,2]
[403166361,1769230237668,-500.0,0.00013894,2]
[403166362,1769230237677,-151.0,0.00013894,2]
[403166363,1769230237687,-500.0,0.00013894,2]
[403166364,1769230237695,-500.0,0.00013894,2]
[403166366,1769230237704,-151.0,0.00013894,2]
[403166368,1769230237713,-305.55826041,0.00013894,2]
[403166369,1769230237724,-194.44173959,0.00013894,2]
[403166370,1769230237733,-210.86920244,0.00013894,2]
[403166371,1769230237743,-289.13079756,0.00013894,2]
[403166373,1769230237752,-500.0,0.00013894,2]
[403166374,1769230237761,-500.0,0.00013894,2]
[403166375,1769230237771,-27.08955024,0.00013894,2]
[403166376,1769230237793,-472.91044976,0.00013894,2]
[403166377,1769230237802,-445.53181283,0.00013894,2]
[403166378,1769230237811,-500.0,0.00013894,2]
[403166379,1769230237819,-500.0,0.00013894,2]
[403166380,1769230237828,-500.0,0.00013894,2]
[403166381,1769230237837,-500.0,0.00013894,2]
[403166382,1769230237846,-1251.6492954,0.00013898,2]
[403166383,1769230237855,-15002.9176454,0.00013898,2]
[403166384,1769230237864,-169.4605034,0.00013898,2]
[403166385,1769230237873,-151.0,0.00013899,2]
[403166386,1769230237882,-500.0,0.00013901,2]
[403166387,1769230237892,-197.83516669,0.00013901,2]
[403166388,1769230237901,-193.90220794,0.00013901,2]
[403166389,1769230237909,-215.150748,0.00013901,2]
[403166390,1769230237919,-500.0,0.00013901,2]
[403166391,1769230237928,-278.7487041,0.00013901,2]
[403166392,1769230237937,-500.0,0.00013901,2]
[403166393,1769230237947,-500.0,0.00013901,2]
[403166394,1769230237960,-227786.37396247,0.00013902,2]
[403166395,1769230237971,-547.5100799,0.00013902,2]
[403166397,1769230240062,-0.05301581,0.00013902,2]
[403166409,1769230242635,-18.49675099,0.00013902,2]
[403166413,1769230395772,171.84070591,0.000155,3]
[403166414,1769230397114,150.07696773,0.000155,3]
[403166415,1769230538819,284.79725386,0.00013636,2]
[403166416,1769230547492,601.42,0.0001299,2]
[403166417,1769230675548,500.0,0.00013015,3]
[403166418,1769230746755,2053.65,0.00013055,2]
[403166419,1769230816349,-1000.0,0.00019178,30]
[403166420,1769230894632,-855.39,0.00019178,30]
[403166421,1769230975682,344.86976572,0.00018,30]
[403166422,1769231001024,36.50778583,0.00012951,2]
[403166423,1769231001046,163.49221417,0.00012951,2]
[403166424,1769231246195,1300.0,0.000149,5]
[403166425,1769231371136,-200.0,0.00013767,2]
[403166426,1769231371155,-578.20924308,0.00013767,2]
[403166427,1769231371174,-359.76179104,0.00013767,2]
[403166428,1769231371193,-512.2989184,0.00013777,2]
[403166429,1769231371212,-195.0,0.00013777,2]
[403166430,1769231371231,-500.0,0.00013786,2]
[403166431,1769231371250,-195.0,0.00013788,2]
[403166432,1769231371269,-1200.0,0.00013793,2]
[403166433,1769231376328,1586.51867548,0.00013839,2]
[403166436,1769231431553,-1183.3,0.00013699,2]
[403166437,1769231431562,-4584.97881697,0.00013839,2]
[403166438,1769231431572,-482.81304744,0.00013883,2]
[403166439,1769231431581,-300.0,0.00013884,2]
[403166440,1769231431591,-1200.0,0.00013884,2]
[403166441,1769231431600,-322.6107,0.00013885,2]
[403166442,1769231431610,-812.4846181,0.00013885,2]
[403166443,1769231431622,-28.28144927,0.00013885,2]
[403166444,1769231431632,-174.61919141,0.00013885,2]
[403166445,1769231431642,-209.40437684,0.00013885,2]
[403166446,1769231431651,-938.84090687,0.00013885,2]
[403166447,1769231431663,-1283.74605043,0.00013885,2]
[403166448,1769231431681,-245.4130427,0.00013885,2]
[403166449,1769231431690,-507.86784317,0.00013885,2]
[403166450,1769231431734,-39.09680297,0.00013885,2]
[403166451,1769231431743,-500.0,0.00013888,2]
[403166452,1769231431752,-151.0,0.0001389,2]
[403166453,1769231431761,-150.0,0.00013892,2]
[403166454,1769231431770,-721.12765535,0.00013893,2]
[403166455,1769231431779,-151.0,0.00013893,2]
[403166456,1769231431788,-500.0,0.00013893,2]
[403166458,1769231431797,-500.0,0.00013893,2]
[403166460,1769231431806,-500.0,0.00013893,2]
[403166462,1769231431815,-359.30707556,0.00013893,2]
[403166506,1769231437611,-500.0,0.00013884,2]
[403166507,1769231437620,-500.0,0.00013884,2]
[403166508,1769231437630,-422.96906503,0.00013884,2]
[403166509,1769231437639,-140.69292444,0.00013893,2]
[403166510,1769231437649,-500.0,0.00013893,2]
[403166511,1769231437659,-500.0,0.00013893,2]
[403166512,1769231437672,-500.0,0.00013893,2]
[403166513,1769231437682,-500.0,0.00013893,2]
[403166514,1769231437691,-500.0,0.00013893,2]
[403166515,1769231437701,-500.0,0.00013893,2]
[403166516,1769231437710,-500.0,0.00013893,2]
[403166517,1769231437719,-500.0,0.00013893,2]